[Event "Deloitte NED-ch Women 2019"]
[Site "Amsterdam"]
[Date "2019.07.07"]
[Round "7.6"]
[White "Keetman, Maaike"]
[Black "Lanchava, Tea"]
[Result "0-1"]
[ECO "B07"]
[WhiteElo "2153"]
[BlackElo "2315"]
[Annotator "NA"]
[PlyCount "92"]
[EventDate "2019.07.01"]
[EventType "tourn"]
[EventCountry "NED"]
[SourceTitle "playchess.com"]
[Source "ChessBase"]
[SourceQuality "1"]
[TimeControl "40/5400+30:1800+30"]

1. e4 {[%emt 0:00:00]} g6 {[%emt 0:00:00]} 2. d4 {[%emt 0:00:00]} Bg7 {[%emt 0:00:00]} 3. Nf3 {[%emt 0:00:00]} d6 {[%emt 0:00:00]} 4. Bd3 {[%emt 0:01:03]} Nf6 {[%emt 0:01:31]} 5. O-O {[%emt 0:00:17]} O-O {[%emt 0:00:19]} 6. h3 {[%emt 0:00:23]} Nc6 {[%emt 0:00:31]} 7. c3 {[%emt 0:01:51]} e5 {[%emt 0:00:29]} 8. Re1 {[%emt 0:03:50]} Nh5 {[%emt 0:03:26]} 9. Be3 {[%emt 0:05:12]} Re8 {[%emt 0:16:00]} 10. Qd2 {[%emt 0:09:49]} a5 {[%emt 0:04:24]} 11. a4 {[%emt 0:04:01]} Bd7 {[%emt 0:07:11]} 12. Na3 {[%emt 0:08:11]} exd4 {[%emt 0:02:04]} 13. Nxd4 {[%emt 0:02:35]} Nxd4 {[%emt 0:07:24]} 14. cxd4 {[%emt 0:00:23]} Bxa4 {[%emt 0:01:03]} 15. Nc4 {[%emt 0:00:37]} b5 {[%emt 0:09:59]} 16. Nxa5 {[%emt 0:05:14]} c5 {[%emt 0:02:44]} 17. Nc6 {[%emt 0:02:28]} Qd7 {[%emt 0:05:32]} 18. d5 {[%emt 0:01:51]} b4 {[%emt 0:01:40]} 19. Qe2 {[%emt 0:08:00]} Qb7 {[%emt 0:12:35]} 20. Bg5 {[%emt 0:15:13]} h6 {[%emt 0:05:03]} 21. Be3 {[%emt 0:03:27]} Nf6 {[%emt 0:00:21]} 22. f3 {[%emt 0:03:15]} Nd7 {[%emt 0:00:34]} 23. Bc4 {[%emt 0:02:30]} Nb6 {[%emt 0:02:24]} 24. Bd3 {[%emt 0:04:30]} Rec8 {[%emt 0:00:46]} 25. Bf4 {[%emt 0:04:47]} Bxc6 {[%emt 0:00:44]} 26. Ba6 {[%emt 0:01:28]} Qc7 {[%emt 0:02:55]} 27. Bxc8 {[%emt 0:00:45]} Ba4 {[%emt 0:00:16]} 28. Ba6 {[%emt 0:01:09]} c4 {[%emt 0:00:33]} 29. Rxa4 {[%emt 0:04:26]} Nxa4 {[%emt 0:00:08]} 30. Bxc4 {[%emt 0:00:07]} Nxb2 {[%emt 0:00:05]} 31. Bb3 {[%emt 0:00:42]} Qc3 {[%emt 0:00:38]} 32. Bc2 {[%emt 0:00:54]} b3 {[%emt 0:02:07]} 33. Bb1 {[%emt 0:00:21]} Nc4 {[%emt 0:01:30]} 34. Rc1 {[%emt 0:01:04]} Qd4+ {[%emt 0:00:07]} 35. Kh1 {[%emt 0:00:06]} Ra4 {[%emt 0:00:59]} 36. Rd1 {[%emt 0:01:32]} Qc3 {[%emt 0:00:40]} 37. Rc1 {[%emt 0:03:13]} Qb4 {[%emt 0:00:07]} 38. Bd3 {[%emt 0:01:21]} Na3 {[%emt 0:00:55]} 39. Bd2 {[%emt 0:01:05]} Qb6 {[%emt 0:00:39]} 40. Rc6 {[%emt 0:01:31]} Qb8 {[%emt 0:01:01]} 41. Qd1 {[%emt 0:02:16]} Ra7 {[%emt 0:05:27]} 42. Bf4 {[%emt 0:10:35]} Bf8 {[%emt 0:05:10]} 43. Be3 {[%emt 0:11:33]} Rb7 {[%emt 0:00:21]} 44. Qa1 {[%emt 0:00:04]} b2 {[%emt 0:05:56]} 45. Qxa3 {[%emt 0:01:44]} Rb3 {[%emt 0:00:09]} 46. Rb6 {[%emt 0:02:36]} Qxb6 {[%emt 0:01:03]} 0-1

[Event "Deloitte NED-ch Women 2019"]
[Site "Amsterdam"]
[Date "2019.07.07"]
[Round "7.8"]
[White "Kazarian, Anna-Maja"]
[Black "Roebers, Eline"]
[Result "1/2-1/2"]
[ECO "B48"]
[WhiteElo "2142"]
[BlackElo "2069"]
[Annotator "NA"]
[PlyCount "92"]
[EventDate "2019.07.01"]
[EventType "tourn"]
[EventCountry "NED"]
[SourceTitle "playchess.com"]
[Source "ChessBase"]
[SourceQuality "1"]
[TimeControl "40/5400+30:1800+30"]

1. e4 {[%emt 0:00:49]} c5 {[%emt 0:00:00]} 2. Nf3 {[%emt 0:00:06]} e6 {[%emt 0:00:00]} 3. d4 {[%emt 0:00:09]} cxd4 {[%emt 0:00:00]} 4. Nxd4 {[%emt 0:00:04]} Nc6 {[%emt 0:00:05]} 5. Nc3 {[%emt 0:00:27]} Qc7 {[%emt 0:00:19]} 6. Nb3 {[%emt 0:00:42]} a6 {[%emt 0:01:33]} 7. Be3 {[%emt 0:01:14]} Nf6 {[%emt 0:01:16]} 8. Bd3 {[%emt 0:00:08]} Be7 {[%emt 0:01:06]} 9. f4 {[%emt 0:04:16]} d5 {[%emt 0:08:34]} 10. e5 {[%emt 0:12:38]} Nd7 {[%emt 0:01:01]} 11. a4 {[%emt 0:04:53]} b6 {[%emt 0:10:43]} 12. O-O {[%emt 0:00:49]} Nc5 {[%emt 0:03:30]} 13. Nd4 {[%emt 0:02:57]} O-O {[%emt 0:05:57]} 14. Kh1 {[%emt 0:16:32]} Nxd3 {[%emt 0:09:48]} 15. cxd3 {[%emt 0:01:36]} f6 {[%emt 0:07:21]} 16. Qg4 {[%emt 0:20:39]} Bc5 {[%emt 0:21:19]} 17. Nce2 {[%emt 0:07:28]} fxe5 {[%emt 0:05:22]} 18. fxe5 {[%emt 0:02:19]} Rxf1+ {[%emt 0:07:21]} 19. Rxf1 {[%emt 0:00:05]} Nxe5 {[%emt 0:01:11]} 20. Qg3 {[%emt 0:10:52]} Bd6 {[%emt 0:03:14]} 21. Rc1 {[%emt 0:01:03]} Qd7 {[%emt 0:03:05]} 22. Bf4 {[%emt 0:00:17]} Nf7 {[%emt 0:00:32]} 23. Bxd6 {[%emt 0:01:05]} Qxd6 {[%emt 0:02:25]} 24. Qxd6 {[%emt 0:01:35]} Nxd6 {[%emt 0:00:05]} 25. Rc6 {[%emt 0:00:11]} Nb7 {[%emt 0:01:42]} 26. Nb3 {[%emt 0:01:44]} b5 {[%emt 0:02:24]} 27. a5 {[%emt 0:00:08]} Nd8 {[%emt 0:01:05]} 28. Rb6 {[%emt 0:00:45]} Nf7 {[%emt 0:01:37]} 29. Nf4 {[%emt 0:01:57]} Ne5 {[%emt 0:00:27]} 30. Nc5 {[%emt 0:01:34]} Kf7 {[%emt 0:00:57]} 31. b3 {[%emt 0:01:14]} Nd7 {[%emt 0:00:35]} 32. Nxd7 {[%emt 0:01:30]} Bxd7 {[%emt 0:00:04]} 33. d4 {[%emt 0:01:03]} Rc8 {[%emt 0:00:54]} 34. Nd3 {[%emt 0:00:37]} Rc3 {[%emt 0:00:37]} 35. Ne5+ {[%emt 0:00:03]} Ke7 {[%emt 0:00:34]} 36. h3 {[%emt 0:00:17]} Bc8 {[%emt 0:00:31]} 37. b4 {[%emt 0:00:58]} Rb3 {[%emt 0:00:32]} 38. Kh2 {[%emt 0:02:04]} h6 {[%emt 0:00:27]} 39. Nc6+ {[%emt 0:00:50]} Kd7 {[%emt 0:00:23]} 40. Nb8+ {[%emt 0:01:20]} Ke7 {[%emt 0:00:40]} 41. Nc6+ {[%emt 0:05:24]} Kd7 {[%emt 0:01:33]} 42. Ne5+ {[%emt 0:02:30]} Kc7 {[%emt 0:06:44]} 43. Rc6+ {[%emt 0:01:58]} Kb7 {[%emt 0:02:03]} 44. Rb6+ {[%emt 0:00:09]} Kc7 {[%emt 0:00:26]} 45. Rc6+ {[%emt 0:03:09]} Kb7 {[%emt 0:00:30]} 46. Rb6+ {[%emt 0:00:57]} Kc7 {[%emt 0:00:07]} 1/2-1/2